Cogmind - Beta 13 X1 @@@ ROGUE MODE // 2023.09.25 @ 11:43:02 Player: DuckBoy Result: Destroyed by S-27 Virus with Autogun Performance ------------- Evolutions (3) 1500 Regions Visited (11) 2200 Robots Destroyed (190) 950 Value Destroyed (6457) 6457 Prototype IDs (28) 560 Alien Tech Used (0) 0 Bonus (8077) 8077 TOTAL SCORE: 19744 Bonus ------- Triggered High Security 500 High Alert Combat Kills 3268 Follower Combat Kills 3231 Entered Garrisons 400 Used RIF Installer 1500 Aligned with FarCom 300 Friendly Fire -1122 Cogmind --------- Core Integrity 0/700 Matter 60/300 Energy 158/160 System Corruption 11% Temperature Cool (6) Movement Flying (30) Location -7/Lower Caves Parts ------- > --- POWER (1) -------- Light Nuclear Core > --- PROPULSION (6) --- VTOL Module VTOL Module Improved Flight Unit > --- UTILITY (3) ------ Improved Heat Sink > --- WEAPON (3) ------- Heavy Laser Autogun > --- INVENTORY (5) ---- Experimental Sensor Array Hacking Suite Advanced Hacking Suite Peak State ------------ > --- POWER ------------ Micro Fission Core > --- PROPULSION ------- Armored Medium Treads Armored Medium Treads Wheel Compact Wheel Compact Wheel Compact Wheel > --- UTILITY ---------- Humpback Supersonic Drone Bay > --- WEAPON ----------- Heavy Phase Cannon Enhanced Gauss Cannon Precision Grenade Launcher > --- INVENTORY -------- Deuterium Engine Micro Fission Core Compact Wheel Improved Coolant Injector High-capacity Storage Unit Experimental Sensor Array Authchip [R/NC] Authchip [R/Combat] Authchip [R/Combat] Authchip [R/Combat] Authchip [R/Combat] Authchip [R/Combat] Authchip [R/Combat] Authchip [R/Combat] Authchip [R/Combat] Authchip [R/Combat] Authchip [R/Combat] Authchip [R/Combat] Authchip [R/Combat] Authchip [R/Combat] Authchip [R/Combat] Authchip [R/Combat] Shock Rifle Wave Gun Gauss Rifle KE Penetrator Assault Cannon Assault Cannon Heavy Flak Cannon Heavy Flak Cannon Hypervelocity Gauss Cannon Heavy Shock Bomb Launcher Rocket Launcher Improved Datajack Remote Datajack [Rating: 63] Favorites ----------- Power Micro Fission Core Engine Improved Ion Engine Power Core Micro Fission Core Reactor Fusion Reactor Propulsion Compact Wheel Treads Armored Medium Treads Wheel Compact Wheel Flight Unit VTOL Module Utility High-capacity Storage Unit Device Heat Sink Storage High-capacity Storage Unit Processor Improved Targeting Computer Hackware Authchip [R/Combat] Protection Improved Light Armor Plating Weapon Heavy Phase Cannon Energy Gun Shock Rifle Energy Cannon Heavy Phase Cannon Ballistic Gun KE Penetrator Ballistic Cannon Enhanced Gauss Cannon Launcher Precision Grenade Launcher Special Melee Weapon Improved Datajack Build | -11 -10 -9 -9 -9 -8 -8 -8 -7 -7 -7 -7 ------- Run | Jun Mat Mat Min Exi Min Mat Gar Fac Gar Fac Low Slots Evolved 6 | . . 2 . . . 2 . 2 . . . Power . | . . . . . . . . . . . . Propulsion 4 | . . 1 . . . 1 . 2 . . . Utility 1 | . . . . . . 1 . . . . . Weapon 1 | . . 1 . . . . . . . . . Parts Attached 154 | 9 2 16 11 4 . 4 22 23 5 50 8 Power 9 | 2 . 2 . . . . 1 . . 2 2 Engine 5 | 2 . 2 . . . . . . . . 1 Core 3 | . . . . . . . 1 . . 1 1 Reactor 1 | . . . . . . . . . . 1 . Propulsion 33 | 4 . 5 3 3 . 3 3 2 1 7 2 Treads 13 | 2 . 2 3 . . 2 2 . . 2 . Leg . | . . . . . . . . . . . . Wheel 17 | 2 . 3 . 3 . 1 1 2 1 4 . Hover . | . . . . . . . . . . . . Flight 3 | . . . . . . . . . . 1 2 Utility 63 | 1 1 2 2 1 . 1 5 20 4 26 . Device 20 | . 1 1 1 . . . 4 3 2 8 . Storage 8 | 1 . 1 . 1 . . 1 1 2 1 . Processor 2 | . . . 1 . . 1 . . . . . Hackware 32 | . . . . . . . . 16 . 16 . Protection 1 | . . . . . . . . . . 1 . Artifact . | . . . . . . . . . . . . Weapon 49 | 2 1 7 6 . . . 13 1 . 15 4 Energy Gun 11 | 1 1 1 4 . . . 3 . . . 1 Energy Cannon 8 | . . 3 . . . . 1 . . 2 2 Ballistic Gun 9 | 1 . 3 . . . . 1 . . 3 1 Ballistic Cannon 10 | . . . . . . . 4 . . 6 . Launcher 10 | . . . 2 . . . 3 1 . 4 . Special Weapon . | . . . . . . . . . . . . Impact Weapon . | . . . . . . . . . . . . Slashing Weapon . | . . . . . . . . . . . . Piercing Weapon . | . . . . . . . . . . . . Special Melee Weapon 1 | . . . . . . . 1 . . . . Unidentified Prototypes 5 | . . . 1 . . . . 1 . 3 . Corrupted Parts 1 | . . . . . . . . . . 1 . System Corruption 5 | . . . . . . . . . . 5 . Parts Lost 35 | . 3 3 3 . . . 3 . 1 21 1 Power 2 | . 1 . . . . . . . . 1 . Propulsion 19 | . 1 2 2 . . . 1 . 1 12 . Utility 4 | . . 1 . . . . 1 . . 2 . Weapon 10 | . 1 . 1 . . . 1 . . 6 1 Highest Loss Streak 15 | . 3 2 3 . . . 2 . 1 15 1 To Critical Strikes 1 | . . . . . . . . . . 1 . Average Slot Usage (%) 88 | . 84 93 87 92 100 94 97 85 91 87 36 Engine 3 | . 6 11 11 11 11 9 1 . . . . Core 2 | . . . . . . . 7 7 7 2 2 Reactor 1 | . . . . . . . . . . 4 . Treads 16 | . 20 9 26 18 11 18 18 15 15 14 . Wheel 19 | . . 22 3 7 22 18 18 29 29 27 . Device 4 | . 12 7 . . . . 6 . 4 2 7 Storage 10 | . 14 11 11 11 11 9 9 7 10 9 . Processor 2 | . . . 2 11 11 12 8 . . . . Energy Gun 7 | . 21 2 12 33 33 27 9 . . . 3 Energy Cannon 6 | . . 20 11 . . . 2 7 7 6 . Ballistic Gun 3 | . 6 10 . . . . 2 . . 2 2 Ballistic Cannon 3 | . . . . . . . 7 7 7 6 . Launcher 3 | . . . 9 . . . 4 6 7 5 . Naked Turns . | . . . . . . . . . . . . Heaviest Build 270 | 13 14 60 59 56 56 56 265 265 270 270 13 Greatest Support 60 | 40 40 36 60 40 32 32 32 58 58 58 13 Greatest Overweight (x) 10 | . . 2 2 1 1 2 10 10 5 9 . Average Overweight (x) 2 | . . 1 . 1 1 1 2 3 2 4 . Largest Inventory Capacity 35 | 8 8 20 20 20 20 20 35 35 35 35 5 Average Capacity 24 | 7 8 18 20 20 20 20 21 35 28 33 5 Most Carried 35 | 5 8 20 20 20 20 20 32 35 34 35 5 Average Carried 21 | 2 7 17 19 18 20 19 19 26 24 29 3 Final Capacity 35 | 8 8 20 20 20 20 20 35 35 35 5 5 Final Carried 34 | 5 8 20 17 20 20 19 32 18 34 5 3 Class Distribution -------------------- 28% | Commander-Mutant 22% | Mutant 21% | Gunner 14% | Hauler-Mutant 5% | Skirmisher Dominant Class ---------------- Mutant | -10/Materials Gunner | -9/Materials Gunner | -9/Mines Gunner | -9/Exiles Skirmisher | -8/Mines Skirmisher | -8/Materials Mutant | -8/Garrison Commander-Mutant | -7/Factory Commander-Mutant | -7/Garrison Commander-Mutant | -7/Factory Scavenger-Sprinter | -7/Lower Caves Resources | -11 -10 -9 -9 -9 -8 -8 -8 -7 -7 -7 -7 ----------- Run | Jun Mat Mat Min Exi Min Mat Gar Fac Gar Fac Low Matter Collected 4112 | 262 220 445 135 88 . . 700 324 118 1708 112 Remotely . | . . . . . . . . . . . . Salvage Created 6358 | . 591 899 107 . . . 682 113 354 3516 96 Parts 377 | . 46 63 22 . . . 62 9 22 147 6 Haulers Intercepted 4 | . . 3 . . . . . . . 1 . Recyclers Shooed 7 | . 5 . 1 . . . . . . 1 . Parts Field Recycled . | . . . . . . . . . . . . Retrieved Matter . | . . . . . . . . . . . . Parts Self-Destructed 2 | . . . . . . . . . . . 2 Prevented 1 | . . . . . . . . . . . 1 Kills | -11 -10 -9 -9 -9 -8 -8 -8 -7 -7 -7 -7 ------- Run | Jun Mat Mat Min Exi Min Mat Gar Fac Gar Fac Low Combat Hostiles Destroyed 147 | . 12 17 10 . . . 28 2 6 68 4 Guns 31 | . 12 6 4 . . . 1 . . 6 2 Cannons 66 | . . 10 . . . . 11 2 6 35 2 AOE 42 | . . . 6 . . . 15 . . 21 . Classes Destroyed 18 | . 6 4 2 . . . 2 . . 4 . Worker 7 | . . 2 1 . . . . . . 4 . Builder 8 | . 2 . . . . . . 1 . 5 . Tunneler 1 | . . . 1 . . . . . . . . Hauler 4 | . . 3 . . . . . . . 1 . Recycler 4 | . 1 1 . . . . . . . 2 . Mechanic 6 | . 1 1 . . . . . . . 4 . Watcher 8 | . 3 4 . . . . . . . 1 . Swarmer 40 | . 3 7 6 . . . 17 . . 3 4 Grunt 44 | . 9 3 2 . . . 2 . . 28 . Brawler 6 | . . 1 . . . . . . . 5 . Duelist 2 | . . . . . . . . . . 2 . Protector 4 | . . . . . . . . . . 4 . Sentry 16 | . . 6 . . . . 5 . 3 2 . Demolisher 5 | . . . 2 . . . . . . 3 . Specialist 6 | . . . . . . . . . . 6 . Hunter 10 | . . . . . . . . . . 10 . Programmer 18 | . . . . . . . 3 3 3 9 . Behemoth 1 | . . . . . . . 1 . . . . Best Kill Streak 12 | . 3 9 5 . . . 7 1 3 12 2 Combat Bots Only 12 | . 3 5 4 . . . 7 1 3 12 2 Max Kills in Single Turn 5 | . 1 2 3 . . . 4 2 1 5 1 Gunslinging . | . . . . . . . . . . . . Exploded 4 | . . . 3 . . . 4 . . 3 . Melee . | . . . . . . . . . . . . Uniques/NPCs Destroyed . | . . . . . . . . . . . . Combat | -11 -10 -9 -9 -9 -8 -8 -8 -7 -7 -7 -7 -------- Run | Jun Mat Mat Min Exi Min Mat Gar Fac Gar Fac Low Damage Taken 6884 | . 676 442 557 . . . 806 199 156 3773 275 Core 1187 | . 147 76 122 . . . 127 17 14 579 105 Absorbed by Shields 11 | . . . . . . . . . 11 . . Regen/Repaired (Parts) 362 | . . . . . . . . . . 362 . Core Remaining (%) 66 | 100 41 . . . 50 . 76 . . . . Volleys Fired 374 | . 72 59 16 . . . 62 9 12 140 4 Largest 3 | . 2 3 3 . . . 3 2 2 3 2 Hottest 218 | . 80 204 150 . . . 190 147 147 218 138 Shots Fired 780 | . 138 177 43 . . . 92 16 21 287 6 Gun 341 | . 138 99 29 . . . 29 . . 44 2 Cannon 379 | . . 78 5 . . . 45 15 21 211 4 Launcher 60 | . . . 9 . . . 18 1 . 32 . Special . | . . . . . . . . . . . . Kinetic 371 | . 64 75 . . . . 52 6 9 165 . Thermal 304 | . 74 102 5 . . . 8 9 12 90 4 Explosive 33 | . . . 9 . . . 6 1 . 17 . Electromagnetic 72 | . . . 29 . . . 26 . . 15 2 Robot Hit Streak 18 | . 12 10 6 . . . 8 3 8 18 5 Robot Miss Streak 7 | . 5 7 3 . . . 2 2 1 4 1 Penetration Max 2 | . . . . . . . 1 . 1 2 . Secondary Targets 2 | . 1 . 1 . . . . . . . . Max Gunslinging Chain 1 | . 1 . 1 . . . . . . . . Shots Hit Robots 438 | . 86 95 20 . . . 51 7 13 161 5 Core Hits 324 | . 32 38 17 . . . 38 5 7 183 4 Critical Kills 11 | . . . . . . . 5 . . 6 . Critical Parts Destroyed 18 | . . . . . . . 10 . . 8 . Critical Strikes 41 | . . . . . . . 15 1 . 25 . Destroy 29 | . . . . . . . 15 . . 14 . Blast 12 | . . . . . . . . 1 . 11 . Melee Attacks 9 | . . . . . . . 9 . . . . Impact . | . . . . . . . . . . . . Slashing . | . . . . . . . . . . . . Piercing . | . . . . . . . . . . . . Sneak Attacks 9 | . . . . . . . 9 . . . . Combat Hostiles . | . . . . . . . . . . . . Follow-up Attacks . | . . . . . . . . . . . . Damage Inflicted 16398 | . 1032 1560 772 . . . 1764 335 572 10251 112 Guns 3247 | . 1030 870 221 . . . 211 . . 877 38 Cannons 6529 | . . 690 84 . . . 749 258 572 4102 74 Explosions 6580 | . . . 449 . . . 804 77 . 5250 . Melee . | . . . . . . . . . . . . Ramming 42 | . 2 . 18 . . . . . . 22 . Kinetic 5727 | . 475 681 . . . . 665 129 225 3552 . Thermal 3848 | . 555 879 84 . . . 268 129 347 1498 88 Explosive 4160 | . . . 449 . . . 405 77 . 3229 . Electromagnetic 2621 | . . . 221 . . . 426 . . 1950 24 Impact . | . . . . . . . . . . . . Slashing . | . . . . . . . . . . . . Piercing . | . . . . . . . . . . . . Highest Corruption 11 | . . . . . . . 1 1 5 11 11 Average Corruption 4 | . . . . . . . 1 1 4 5 11 Corruption Purged . | . . . . . . . . . . . . Corruption Blocked . | . . . . . . . . . . . . Effects 131 | . . . . . . . 3 5 12 106 5 Message Errors 32 | . . . . . . . 2 . 4 24 2 Matter Fused 29 | . . . . . . . . 2 3 24 . Heat Flow Errors 14 | . . . . . . . 1 . . 13 . Energy Discharges 15 | . . . . . . . . . 2 13 . Parts Fused 2 | . . . . . . . . . . 2 . Data Loss (minor) 16 | . . . . . . . . 1 2 11 2 Data Loss (major) 6 | . . . . . . . . 1 1 4 . Misfires 7 | . . . . . . . . 1 . 6 . Alerts 2 | . . . . . . . . . . 2 . Misdirections 2 | . . . . . . . . . . 1 1 Weapon Failures 6 | . . . . . . . . . . 6 . Overload Shots . | . . . . . . . . . . . . Overflow Damage 154 | . . 12 9 . . . 3 . 1 129 . Projectiles 84 | . . 12 . . . . . . 1 71 . Explosions 70 | . . . 9 . . . 3 . . 58 . Melee . | . . . . . . . . . . . . Knockbacks 38 | . . . . . . . 3 . 2 33 . Impact 1 | . . . . . . . . . . 1 . Kinetic 31 | . . . . . . . 2 . 2 27 . Secondary 6 | . . . . . . . 1 . . 5 . Self-Inflicted Damage 352 | . . . 85 . . . 73 . . 194 . Shots 10 | . . . 3 . . . 2 . . 5 . Rammed 6 | . 1 . 2 . . . . . . 3 . Targets Rammed 7 | . 1 . 3 . . . . . . 3 . Kicked . | . . . . . . . . . . . . Crushed 1 | . . . 1 . . . . . . . . Highest Temperature 443 | . 30 214 332 . . . 427 138 314 443 6 Average Temperature 97 | . 16 81 160 . . . 93 65 97 105 3 Received Heat Transfer 1316 | . 348 99 42 . . . 69 12 5 741 . Effects 8 | . . . . . . . 1 . . 7 . Shutdowns 1 | . . . . . . . 1 . . . . Energy Bleed 3 | . . . . . . . . . . 3 . Interference 1 | . . . . . . . . . . 1 . Short Circuit 2 | . . . . . . . . . . 2 . Damage (minor) 1 | . . . . . . . . . . 1 . Siege Activations . | . . . . . . . . . . . . Robots Corrupted 8 | . . . . . . . 1 . . 7 . Combat Hostiles 7 | . . . . . . . 1 . . 6 . Parts Fried 21 | . . . . . . . 1 . 2 18 . Impact Corruptions . | . . . . . . . . . . . . Robots Melted 1 | . . 1 . . . . . . . . . Combat Hostiles 1 | . . 1 . . . . . . . . . Parts Melted 6 | . 4 1 . . . . . . . . 1 Heat Transferred 5617 | . 1250 1646 148 . . . 235 111 333 1746 148 Parts Sabotaged . | . . . . . . . . . . . . Parts Stolen . | . . . . . . . . . . . . Parts Stripped . | . . . . . . . . . . . . Power Chain Reactions 5 | . . . . . . . 1 . . 4 . Missiles Intercepted . | . . . . . . . . . . . . Alert | -11 -10 -9 -9 -9 -8 -8 -8 -7 -7 -7 -7 ------- Run | Jun Mat Mat Min Exi Min Mat Gar Fac Gar Fac Low Peak Influence 4407 | . 168 374 285 . . 29 904 495 904 4407 . Initial 474 | . . . 102 . . . 18 474 233 474 . Average 600 | . 51 110 132 . . 14 465 169 607 1449 . Maximum Alert Level 5 | . . 1 1 . . . 3 2 3 5 . Low Security (%) 44 | 100 100 76 78 . 100 100 23 63 . . . Level 1 12 | . . 23 21 . . . 20 22 32 2 . Level 2 13 | . . . . . . . 23 14 18 23 . Level 3 13 | . . . . . . . 33 . 49 25 . Level 4 7 | . . . . . . . . . . 24 . Level 5 1 | . . . . . . . . . . 4 . High Security 6 | . . . . . . . . . . 19 . Max Security . | . . . . . . . . . . . . Sterilizations 1 | . . . . . . . . . . 1 . Squads Dispatched 52 | . 2 1 . . . . . 9 . 40 . Investigation 8 | . 2 . . . . . . . . 6 . Extermination 7 | . . . . . . . . 2 . 5 . Reinforcement 6 | . . 1 . . . . . 1 . 4 . Assault 25 | . . . . . . . . . . 25 . Garrison 6 | . . . . . . . . 6 . . . Intercept . | . . . . . . . . . . . . Searches Triggered . | . . . . . . . . . . . . Construction Impeded 2 | . . . . . . . . 1 . 1 . Haulers Reinforced . | . . . . . . . . . . . . Active Scanning Responses . | . . . . . . . . . . . . Cargo Convoy Interrupts 1 | . . . . . . . . . . 1 . Stealth | -11 -10 -9 -9 -9 -8 -8 -8 -7 -7 -7 -7 --------- Run | Jun Mat Mat Min Exi Min Mat Gar Fac Gar Fac Low Distress Signals 4 | . . 3 . . . . . . . 1 . Communications Jammed 2 | . . . . . . . . . . 2 . Distress Signals 2 | . . . . . . . . . . 2 . Times Spotted 302 | . 22 27 14 . . 1 20 5 13 193 7 Peak Tracking Total 18 | . 3 5 6 . . 1 6 2 3 18 4 Tactical Retreats 13 | . . . 2 . . . 6 . . 4 1 Traps | -11 -10 -9 -9 -9 -8 -8 -8 -7 -7 -7 -7 ------- Run | Jun Mat Mat Min Exi Min Mat Gar Fac Gar Fac Low Traps Triggered 7 | . 1 . . . . . 3 . 3 . . Indirectly . | . . . . . . . . . . . . Trap Hack Attempts . | . . . . . . . . . . . . Triggered . | . . . . . . . . . . . . Disarmed . | . . . . . . . . . . . . Reprogrammed . | . . . . . . . . . . . . Reused . | . . . . . . . . . . . . Traps Extracted . | . . . . . . . . . . . . Installed . | . . . . . . . . . . . . Triggered 1 | . . . . . . . 1 . . . . Machines | -11 -10 -9 -9 -9 -8 -8 -8 -7 -7 -7 -7 ---------- Run | Jun Mat Mat Min Exi Min Mat Gar Fac Gar Fac Low Machines Disabled 27 | . . 4 1 . . . 1 1 1 19 . Max in Single Turn 4 | . . 2 1 . . . 1 1 1 4 . Machines Repaired . | . . . . . . . . . . . . Machines Sabotaged . | . . . . . . . . . . . . Overloaded Fab Kills . | . . . . . . . . . . . . Hacking | -11 -10 -9 -9 -9 -8 -8 -8 -7 -7 -7 -7 --------- Run | Jun Mat Mat Min Exi Min Mat Gar Fac Gar Fac Low Machines Accessed 38 | . 4 7 1 2 . 2 2 6 2 12 . Terminals 30 | . 4 7 1 . . 1 2 4 2 9 . Fabricators 3 | . . . . . . . . 1 . 2 . Repair Stations . | . . . . . . . . . . . . Recycling Units 1 | . . . . . . . . . . 1 . Scanalyzers . | . . . . . . . . . . . . Garrison Access 2 | . . . . . . 1 . 1 . . . Total Hacks 165 | . 12 24 3 2 . 6 2 48 4 64 . Successful 114 | . 3 13 2 2 . 4 1 42 . 47 . Failed 51 | . 9 11 1 . . 2 1 6 4 17 . Catastrophic 9 | . 1 1 1 . . . 1 . 1 4 . Database Lockouts . | . . . . . . . . . . . . Manual 79 | . 12 21 4 1 . 5 . 15 . 21 . Terminals 84 | . 12 24 3 . . 5 2 13 4 21 . Fabricators 72 | . . . . . . . . 34 . 38 . Repair Stations . | . . . . . . . . . . . . Recycling Units 5 | . . . . . . . . . . 5 . Scanalyzers . | . . . . . . . . . . . . Garrison Access 2 | . . . . . . 1 . 1 . . . Terminal Hacks 23 | . 1 8 2 2 . 2 1 3 . 4 . Record 1 | . . . . 1 . . . . . . . Part Schematic 2 | . . . . . . 1 . . . 1 . Robot Schematic 4 | . 1 1 . . . . . 1 . 1 . Robot Analysis 5 | . . 3 2 . . . . . . . . Branch Access Points 1 | . . 1 . . . . . . . . . Emergency Access Points 1 | . . . . . . . 1 . . . . Terminal Index 3 | . . 1 . . . 1 . . . 1 . Alert Level 1 | . . 1 . . . . . . . . . Unreport Threat 4 | . . 1 . . . . . 2 . 1 . Derelict Proto ID Bank 1 | . . . . 1 . . . . . . . Fabricator Hacks 67 | . . . . . . . . 32 . 35 . Load Schematic 34 | . . . . . . . . 16 . 18 . Build 33 | . . . . . . . . 16 . 17 . Repair Station Hacks . | . . . . . . . . . . . . Recycling Unit Hacks . | . . . . . . . . . . . . Scanalyzer . | . . . . . . . . . . . . Garrison Access Hacks 2 | . . . . . . 1 . 1 . . . Unlock Access 2 | . . . . . . 1 . 1 . . . Unauthorized Hacks 22 | . 2 5 . . . 1 . 6 . 8 . Terminals 15 | . 2 5 . . . 1 . 4 . 3 . Assimilate 2 | . . . . . . 1 . . . 1 . Botnet 10 | . 1 4 . . . . . 3 . 2 . Operators 3 | . 1 1 . . . . . 1 . . . Fabricators 4 | . . . . . . . . 2 . 2 . Prioritize 3 | . . . . . . . . 1 . 2 . Haulers 1 | . . . . . . . . 1 . . . Repair Stations . | . . . . . . . . . . . . Recycling Units 3 | . . . . . . . . . . 3 . Reject 1 | . . . . . . . . . . 1 . Recyclers 1 | . . . . . . . . . . 1 . Mask 1 | . . . . . . . . . . 1 . Scanalyzers . | . . . . . . . . . . . . Garrison Access . | . . . . . . . . . . . . Data Cores Recovered . | . . . . . . . . . . . . Used . | . . . . . . . . . . . . Hacking Detections 32 | . 3 6 1 . . 1 2 6 2 11 . Full Trace Events 9 | . 1 . . . . . . . 2 6 . Feedback Events . | . . . . . . . . . . . . Feedback Blocked . | . . . . . . . . . . . . Robot Schematics Acquired 4 | . 1 1 . . . . . 1 . 1 . Robots Built 61 | . . . . . . . . 31 . 30 . Authchips 32 | . . . . . . . . 16 . 16 . Time 2041 | . . . . . . . . 1045 . 996 . Total Robot Build Rating 235 | . . . . . . . . 121 . 114 . Part Schematics Acquired 2 | . . . . . . 1 . . . 1 . Parts Built 1 | . . . . . . . . . . 1 . Authchips . | . . . . . . . . . . . . Time 53 | . . . . . . . . . . 53 . Total Part Build Rating 6 | . . . . . . . . . . 6 . Parts Repaired . | . . . . . . . . . . . . Time . | . . . . . . . . . . . . Parts Recycled . | . . . . . . . . . . . . Recycled Matter . | . . . . . . . . . . . . Retrieved Matter . | . . . . . . . . . . . . Retrieved Components . | . . . . . . . . . . . . Parts Scanalyzed . | . . . . . . . . . . . . Part Schematics Acquired . | . . . . . . . . . . . . Parts Damaged . | . . . . . . . . . . . . Bothacking | -11 -10 -9 -9 -9 -8 -8 -8 -7 -7 -7 -7 ------------ Run | Jun Mat Mat Min Exi Min Mat Gar Fac Gar Fac Low Used RIF Installer 3 | . . . . . . . 1 . 2 . . Command Fork 1 | . . . . . . . . . 1 . . Structural Interface 1 | . . . . . . . . . 1 . . Robots Hacked . | . . . . . . . . . . . . Non-combat . | . . . . . . . . . . . . Combat . | . . . . . . . . . . . . Robot Hacks Applied . | . . . . . . . . . . . . Relay Couplers Released . | . . . . . . . . . . . . Fabnet Peak Effective % . | . . . . . . . . . . . . Robots Rewired 3 | . . . . . . . 3 . . . . Allies Hacked 19 | . . . . . . . . . 4 15 . Hacks Repelled 3 | . . . . . . . . . 2 1 . Allies | -11 -10 -9 -9 -9 -8 -8 -8 -7 -7 -7 -7 -------- Run | Jun Mat Mat Min Exi Min Mat Gar Fac Gar Fac Low Total Allies 87 | . . . . . . 1 3 31 6 46 . Largest Group 32 | . . . . . . 1 3 30 28 32 . Highest-Rated Group 1095 | . . . . . . 10 72 1083 957 1095 . Highest-Rated Ally 37 | . . . . . . 10 24 37 37 37 . Total Orders 39 | . . . . . . . 8 10 6 15 . STAY 17 | . . . . . . . 2 7 2 6 . FOLLOW 12 | . . . . . . . 1 2 4 5 . AID 4 | . . . . . . . . . . 4 . EXPLORE 4 | . . . . . . . 3 1 . . . RETURN 2 | . . . . . . . 2 . . . . Ally Attacks 625 | . . . . . . . . 55 55 515 . Total Damage 15662 | . . . . . . . . 1237 1174 13251 . Kills 128 | . . . . . . . . 13 9 106 . Allies Corrupted 2 | . . . . . . . . . . 2 . Allies Melted 1 | . . . . . . . . . . 1 . Intel | -11 -10 -9 -9 -9 -8 -8 -8 -7 -7 -7 -7 ------- Run | Jun Mat Mat Min Exi Min Mat Gar Fac Gar Fac Low Robot Analysis Total 5 | . . 3 2 . . . . . . . . Derelict Logs Recovered 4 | . . . 2 . . . . . . . 2 Drone Launches 3 | . . . . . . . 2 1 . . . Drone Recoveries 2 | . . . . . . . 2 . . . . Exploration | -11 -10 -9 -9 -9 -8 -8 -8 -7 -7 -7 -7 ------------- Run | Jun Mat Mat Min Exi Min Mat Gar Fac Gar Fac Low Turns Passed 12588 | 91 1712 1249 861 766 165 155 1239 1910 565 3755 120 Spaces Moved 6837 | 64 426 829 470 431 141 104 777 998 360 1976 261 Core 45 | 4 . . . . . . . . . 41 . Treads 1027 | 22 426 . 358 211 . 1 . . . 9 . Legs . | . . . . . . . . . . . . Wheels 5466 | 38 . 829 112 220 141 103 777 998 360 1888 . Hover . | . . . . . . . . . . . . Flight 299 | . . . . . . . . . . 38 261 Fastest Speed 30 | 50 160 86 120 115 115 115 115 140 110 40 30 Average Speed 139 | 112 160 115 162 176 115 117 126 142 131 155 31 Slowest Speed 330 | 160 160 120 240 240 115 330 240 240 168 250 40 Overloaded Moves . | . . . . . . . . . . . . Propulsion Burnouts . | . . . . . . . . . . . . Robots Hopped 2 | . . . . . . . . . . . 2 Cave-ins Triggered . | . . . . . . . . . . . . Exploration Rate (%) 52 | 3 59 58 98 86 49 9 85 35 64 41 42 Regions Visited 11 Branch Regions 4 Pre-discovered Areas 2 | . . . 1 1 . . . . . . . Known Exits Taken 3 | . . 1 . . . 1 . 1 . . . Unknown Exits Taken 6 | 1 1 . 1 1 1 . . . . 1 . Scrap Searched 5 | . . . 3 . 1 . . . . . 1 Spaces Dug 83 | . . . 25 . . . 29 3 . 26 . Terrain Destroyed 436 | . . . 93 . . . 50 13 1 279 . Melee . | . . . . . . . . . . . . Projectile 82 | . . . . . . . 6 9 1 66 . AOE 354 | . . . 93 . . . 44 4 . 213 . Terrain Rammed . | . . . . . . . . . . . . Walls Destroyed . | . . . . . . . . . . . . Machines Disabled . | . . . . . . . . . . . . Actions | -11 -10 -9 -9 -9 -8 -8 -8 -7 -7 -7 -7 --------- Run | Jun Mat Mat Min Exi Min Mat Gar Fac Gar Fac Low Total 9173 | 80 1319 990 534 436 144 137 953 1473 432 2385 290 Wait 1623 | . 811 51 26 . 4 25 39 437 12 202 16 Move 6824 | 63 425 828 469 430 140 104 776 997 359 1975 258 Hop 1 | . . . . . . . . . . . 1 Pick Up 97 | 7 6 24 4 2 . 2 27 4 17 3 1 Fast Attach 32 | 5 1 5 . . . . 1 2 . 13 5 Attach 68 | 1 1 5 4 1 . 2 4 18 4 25 3 Detach 9 | . . . 1 . . . 2 1 3 2 . Swap 54 | 3 . 6 7 3 . 2 17 3 1 12 . Drop 50 | 1 2 12 4 . . 2 15 2 . 10 2 Fire 374 | . 72 59 16 . . . 62 9 12 140 4 Melee 9 | . . . . . . . 9 . . . . Ram . | . . . . . . . . . . . . Kick . | . . . . . . . . . . . . Crush 7 | . 1 . 3 . . . . . . 3 . Escape Stasis 24 | . . . . . . . . . 24 . . Rewire 1 | . . . . . . . 1 . . . . Trap . | . . . . . . . . . . . . Miscellaneous . | . . . . . . . . . . . . Route ------- -11/Junkyard -10/Materials (discovered 3 exits: *Mat x2 / [*Min]) -9/Materials (discovered 3 exits: *Mat x2 / *Min) -9/Mines (discovered 3 exits: *Mat x2 / *Exi) -9/Exiles -8/Mines -8/Materials (discovered 2 exits: Sto / Gar) -8/Garrison (discovered 3 exits: *Fac x3) -7/Factory (discovered 3 exits: [*Fac] / *Low / Gar) -7/Garrison -7/Factory -7/Lower Caves History --------- Turn | Location | Event 37 | -11/Junkyard | Discovered new exit (range 14) 92 | -11/Junkyard | Entered Materials 292 | -10/Materials | Discovered new exit (range 11) 301 | -10/Materials | Build established: Mutant 734 | -10/Materials | Discovered new exit (range 15) 796 | -10/Materials | Discovered new exit (range 15) 955 | -10/Materials | Core integrity fell below 50% 978 | -10/Materials | Lost 3 parts (1p1n1w) 1804 | -10/Materials | Entered another Materials area 1804 | -9/Materials | Evolved 2 slots: Propulsion x1, Weapon x1 2081 | -9/Materials | Discovered new exit (range 11) 2165 | -9/Materials | Build established: Gunner 2437 | -9/Materials | Identified exit to Mines 2994 | -9/Materials | Discovered new exit (range 3) 3053 | -9/Materials | Entered Mines 3192 | -9/Mines | Assembled infested the area 3323 | -9/Mines | Found a damaged Exp. Sensor Array with a note attached 3328 | -9/Mines | Found Prototype Device 3367 | -9/Mines | Learned location of Zion (-7) 3406 | -9/Mines | Identified Exp. Sensor Array 3465 | -9/Mines | Discovered new exit (range 9) 3596 | -9/Mines | Discovered new exit (range 15) 3755 | -9/Mines | Lost 3 parts (2n1w) 3902 | -9/Mines | Deemed a non-threat by the Exiles lab entrance 3905 | -9/Mines | Discovered new exit (range 5) 3914 | -9/Mines | Entered Exiles 3977 | -9/Exiles | Met 8R-AWN 4015 | -9/Exiles | Met EX-HEX 4109 | -9/Exiles | Met EX-DEC 4293 | -9/Exiles | Visited The Gauntlet 4471 | -9/Exiles | Met EX-BIN 4488 | -9/Exiles | Aligned with FarCom system 4489 | -9/Exiles | Given EX-Vault access code 4519 | -9/Exiles | Opened EX-Vault 4528 | -9/Exiles | Found Supersonic Drone Bay 4552 | -9/Exiles | Warned to stay clear of 0b10 Research branches 4668 | -9/Exiles | Discovered new exit (range 14) 4680 | -9/Exiles | Left Exiles lab with Supersonic Drone Bay 4680 | -9/Exiles | Entered Mines 4836 | -8/Mines | Discovered new exit (range 9) 4845 | -8/Mines | Entered Materials 4845 | -8/Materials | Evolved 2 slots: Propulsion x1, Utility x1 4846 | -8/Materials | Identified exit to Storage 4973 | -8/Materials | Build established: Skirmisher 5000 | -8/Materials | Identified exit to Garrison 5000 | -8/Materials | Entered Garrison 5000 | -8/Garrison | Accompanied by 1 ally 5247 | -8/Garrison | Triggered checkpoint 5247 | -8/Garrison | Triggered checkpoint 5306 | -8/Garrison | Destroyed 7 combat bots 5358 | -8/Garrison | Triggered checkpoint 5438 | -8/Garrison | Discovered new exit (range 8) 5498 | -8/Garrison | Triggered checkpoint 5543 | -8/Garrison | Triggered checkpoint 5561 | -8/Garrison | Discovered new exit (range 29) 5565 | -8/Garrison | Discovered new exit (range 39) 5588 | -8/Garrison | Spotted B-75 Beast 5868 | -8/Garrison | Destroyed B-75 Beast 5898 | -8/Garrison | Triggered checkpoint 5916 | -8/Garrison | Build established: Mutant 5981 | -8/Garrison | Installed Relay Interface Framework 6239 | -8/Garrison | Entered Factory 6239 | -7/Factory | Accompanied by 3 allies 6239 | -7/Factory | Evolved 2 slots: Propulsion x2 6334 | -7/Factory | Discovered new exit (range 94) 6335 | -7/Factory | Discovered new exit (range 116) 6537 | -7/Factory | Garrison activated, responded to threat 6627 | -7/Factory | Fabricated P-60 Hacker? 6702 | -7/Factory | Fabricated O-16 Technician (x1) 6778 | -7/Factory | Fabricated P-60 Hacker? 6826 | -7/Factory | Build established: Hauler-Mutant 6907 | -7/Factory | Fabricated P-60 Hacker (x2) 6975 | -7/Factory | Fabricated P-60 Hacker (x2) 7043 | -7/Factory | Fabricated P-60 Hacker (x2) 7111 | -7/Factory | Fabricated P-60 Hacker (x2) 7179 | -7/Factory | Fabricated P-60 Hacker? 7272 | -7/Factory | Fabricated P-60 Hacker? 7294 | -7/Factory | Build established: Commander-Mutant 7355 | -7/Factory | Fabricated P-60 Hacker (x2) 7436 | -7/Factory | Fabricated P-60 Hacker? 7527 | -7/Factory | Fabricated P-60 Hacker (x2) 7638 | -7/Factory | Garrison activated, responded to threat 7748 | -7/Factory | Fabricated P-60 Hacker (x2) 7819 | -7/Factory | Fabricated P-60 Hacker (x2) 7886 | -7/Factory | Fabricated P-60 Hacker (x2) 7954 | -7/Factory | Fabricated P-60 Hacker (x2) 8125 | -7/Factory | Identified exit to Garrison 8149 | -7/Factory | Entered Garrison 8149 | -7/Garrison | Accompanied by 25 allies 8233 | -7/Garrison | Expanded RIF knowledge: Structural Interface 8324 | -7/Garrison | Triggered checkpoint 8326 | -7/Garrison | Triggered checkpoint 8327 | -7/Garrison | Hacker 4q assimilated hostile G-47 Trooper 8338 | -7/Garrison | Triggered checkpoint 8356 | -7/Garrison | Triggered checkpoint 8424 | -7/Garrison | Triggered checkpoint 8432 | -7/Garrison | Hacker 4o assimilated hostile Y-54 Guardian 8450 | -7/Garrison | Rescued a captive Derelict 8452 | -7/Garrison | Rescued a captive Derelict 8663 | -7/Garrison | Hacker 4s assimilated hostile Y-54 Guardian 8672 | -7/Garrison | Expanded RIF knowledge: Command Fork 8680 | -7/Garrison | Discovered new exit (range 11) 8714 | -7/Garrison | Entered Factory 8714 | -7/Factory | Accompanied by 28 allies 9262 | -7/Factory | Hacker 4n assimilated hostile G-47 Trooper 9263 | -7/Factory | Hacker 4d assimilated hostile G-50 Soldier 9827 | -7/Factory | Hacker 4q assimilated hostile G-47 Trooper 9860 | -7/Factory | Cargo convoy interrupted 9891 | -7/Factory | Hacker 4a assimilated hostile H-55 Commando 10183 | -7/Factory | Build established: Hauler-Mutant 10844 | -7/Factory | Fabricated P-60 Hacker (x2) 10926 | -7/Factory | Fabricated P-60 Hacker (x2) 11037 | -7/Factory | Fabricated P-60 Hacker (x2) 11109 | -7/Factory | Fabricated M-13 Machinist (x1) 11114 | -7/Factory | First assault squad dispatched 11199 | -7/Factory | Fabricated P-60 Hacker (x2) 11200 | -7/Factory | Fabricated P-60 Hacker? 11269 | -7/Factory | Fabricated P-60 Hacker (x2) 11279 | -7/Factory | Fabricated P-60 Hacker? 11341 | -7/Factory | Fabricated P-60 Hacker? 11343 | -7/Factory | Fabricated P-60 Hacker (x2) 11408 | -7/Factory | Fabricated P-60 Hacker? 11411 | -7/Factory | Fabricated P-60 Hacker (x2) 11425 | -7/Factory | Build established: Commander-Mutant 11475 | -7/Factory | Fabricated P-60 Hacker? 11478 | -7/Factory | Fabricated P-60 Hacker (x2) 11533 | -7/Factory | Fabricated O-16 Technician? 11546 | -7/Factory | Fabricated P-60 Hacker (x2) 11546 | -7/Factory | Hacker 4*50 assimilated hostile L-41 Fighter 11547 | -7/Factory | Hacker 4*48 assimilated hostile L-41 Fighter 11549 | -7/Factory | Hacker 4*35 assimilated hostile G-50 Soldier 11656 | -7/Factory | Fabricated Adv. Hacking Suite (x1) 11738 | -7/Factory | High security lockdown imminent 11818 | -7/Factory | High security lockdown engaged 11822 | -7/Factory | Hacker 4*43 assimilated hostile Y-54 Guardian 11916 | -7/Factory | Hacker 4*52 assimilated hostile G-50 Soldier 11919 | -7/Factory | Hacker 4*49 assimilated hostile B-48 Gladiator 11990 | -7/Factory | Hacker 4*53 assimilated hostile B-48 Gladiator 12061 | -7/Factory | Hacker 4*42 assimilated hostile Y-54 Guardian 12095 | -7/Factory | Destroyed 12 combat bots 12126 | -7/Factory | Lost 3 parts (2n1w) 12145 | -7/Factory | Hacker 4*56 assimilated hostile G-47 Trooper 12151 | -7/Factory | Hacker 4*56 assimilated hostile G-47 Trooper 12268 | -7/Factory | System corruption reached 10% 12318 | -7/Factory | Sterilization system engaged 12318 | -7/Factory | Non-combat units ordered to evacuate 12334 | -7/Factory | Core integrity fell below 50% 12418 | -7/Factory | Combat units ordered to evacuate 12437 | -7/Factory | Lost 15 parts (1p7n2u5w) 12437 | -7/Factory | Core integrity fell below 20% 12465 | -7/Factory | Discovered new exit (range 9) 12469 | -7/Factory | Entered Lower Caves 12473 | -7/Lower Caves | Learned Factory emergency access door positions 12564 | -7/Lower Caves | Spotted B-75 Beast 12589 | -7/Lower Caves | Destroyed by S-27 Virus with Autogun Last Messages --------------- 12524_ Acquired Unknown Energy Gun. 12524_ Identified Hvy. Laser. 12525_ S-27 Virus destroyed. 12528_ VTOL Module melted. 12528_ S-27 Virus destroyed. 12530_ VTOL Module fries itself beyond repair. 12532_ Acquired 22 matter. 12532_ Acquired 26 matter. 12532_ Acquired Unknown Power Core. 12533_ Dropped Imp. EM Pulse Cannon. 12541_ Autogun self-destruct mechanism malfunctions. 12543_ System corrupted: Component data lost. 12543_ Identified Lgt. Nuclear Core. 12548_ Acquired Autogun. 12573_ UQ:7LGHVW8F3AG5G|20FBB#RLIZK%HYBL 12582_ RIF reveals location of hidden door. 12585_ Acquired derelict log, extracted data. Data stored: Extension entrances (x1). 12586_ Connecting with Outpost Terminal... 12586_ Current location identified: Lower Caves Map ----- +----------------------------------------------------+ | ?????????????????????????????????????????????????? | | ?????????????????????????????????????????????????? | | ?????????????????????????????????????????????????? | | ?????????????????????????????????????????????????? | | ?????????????????????????????????????????????????? | | ?????????????????????????????????????????????????? | | ?????????????????????????????????????????????????? | | ?????????????????????????????????????????????????? | | ?????????????????????????????????????????????????? | | ?????????????????????????????????????????????????? | | ?????????????????????????????????????????????????? | | ?????????????????????????????????????????????????? | | ?????????????????????????????????????????????????? | | ???????????????????????????####??????? ?????????? | | ??????????????????????????? #??????# ?????????? | | ??????????????????????????? #??????# ????????? | | ??????????????????????????? ##?????# #????????? | | ??????????????????????????? ??????# #????#???? | | ??????????????????????????# ???????# #??? #???? | | ?????????????????????????# ???????# ##?? #???? | | ?????????????????????????# ???????## ### ###?? | | ?????????????????????##### #???????# ??? | | ?????????????????????? ######### ???? | | ??????????????????????? #????? | | ????????????????????????# #?????? | | ????????????????????????#@ ##+###### #??????? | | ????????????????????????# "[ # ######## | | ????????????????????????# #" # # | | ????????????????????????# # "" s | | ????????????????????????# #" ### # | | ????????????????????????# #" # #?# | | ????????????????????????# ; # ### # # | | ????????????????????????# # #?## # | | ????????????????????????# "T" + #??# ### | | ????????????????????????# #"" ""# #??# #? | | ????????????????????????# ##### ### #??# #? | | ????????????????????????# ???? ###??# #? | | ????????????????????????# ??? #????# #? | | ????????????????????????####??###### ###????# ## | | ???????????????????????????????????? #???### # | | ???????????????????????????????????? #??# | | ???????????????????????????????????? ??# | | ???????????????????????????????????? #?## | | ????????????????????????????????????? #??### | | ????????????????????????????????????? ? ?????# | | ?????????????????????????????????????????????## | | ????????????????????????????????????????????## | | ???????????????????????????????????? ## | | ???????????????????????????????????? | | ???????????????????????????????????? # | +----------------------------------------------------+ Best States ------------- Heat Dissipation 61 Coolant Potential 80 Energy Generation 23 Energy Capacity 295 Matter Stores 300 Matter Capacity 300 Sight Range 16 Terrain Scan Density 10 Jamming Range 12 Armor Coverage 150 Evasion (%) 64 Targeting Accuracy 6 Recoil Reduction 3 Authchip Count 16 Item Schematics ----------------- Hacking Suite | -8/Materials | Hacked Adv. Hacking Suite | -7/Factory | Hacked Robot Schematics ------------------ M-13 Machinist | -10/Materials | Hacked O-16 Technician | -9/Materials | Hacked P-60 Hacker | -7/Factory | Hacked Y-54 Guardian | -7/Factory | Hacked Fabricated ------------ P-60 Hacker | x2 | -7/Factory | Authchip O-16 Technician | x1 | -7/Factory | Authchip P-60 Hacker | x2 | -7/Factory | Authchip P-60 Hacker | x2 | -7/Factory | Authchip P-60 Hacker | x2 | -7/Factory | Authchip P-60 Hacker | x2 | -7/Factory | Authchip P-60 Hacker | x2 | -7/Factory | Authchip P-60 Hacker | x2 | -7/Factory | Authchip P-60 Hacker | x2 | -7/Factory | Authchip P-60 Hacker | x2 | -7/Factory | Authchip P-60 Hacker | x2 | -7/Factory | Authchip P-60 Hacker | x2 | -7/Factory | Authchip P-60 Hacker | x2 | -7/Factory | Authchip P-60 Hacker | x2 | -7/Factory | Authchip P-60 Hacker | x2 | -7/Factory | Authchip P-60 Hacker | x2 | -7/Factory | Authchip P-60 Hacker | x2 | -7/Factory | Authchip P-60 Hacker | x2 | -7/Factory | Authchip P-60 Hacker | x2 | -7/Factory | Authchip M-13 Machinist | x1 | -7/Factory | Authchip P-60 Hacker | x2 | -7/Factory | Authchip P-60 Hacker | x2 | -7/Factory | Authchip P-60 Hacker | x2 | -7/Factory | Authchip P-60 Hacker | x2 | -7/Factory | Authchip P-60 Hacker | x2 | -7/Factory | Authchip P-60 Hacker | x2 | -7/Factory | Authchip P-60 Hacker | x2 | -7/Factory | Authchip P-60 Hacker | x2 | -7/Factory | Authchip P-60 Hacker | x2 | -7/Factory | Authchip P-60 Hacker | x2 | -7/Factory | Authchip O-16 Technician | x1 | -7/Factory | Authchip P-60 Hacker | x2 | -7/Factory | Authchip Adv. Hacking Suite | x1 | -7/Factory Alien Tech Used ----------------- None Achievements -------------- None Challenges ------------ None Game ------ Seed SpacefoldMagneticMallet Manual? 0 Play Time 01:58:57 Cumulative 364.7 hours Start 2023.09.25 @ 09:42:35 End 2023.09.25 @ 11:43:02 Sessions 1 Manual Loads 0 Difficulty Rogue Special Mode None Game No. 233 Rogue 230 Adventurer 3 Explorer 0 Win Type - Total 7 Types 6/0/1/0/0/0/0/0/0 Lore% 69 Gallery% 75 Achievement% 66 Wizard Run 0 Options --------- ASCII 0 Keyboard 0 Movement Numpad Keybinds 0 Fullscreen 1 Font 18/SmallcapsGlow Map View 76x50 Tactical HUD 1 Map Filters NONE Filters NONE Steam 1 RUN: d1023ed7-844a-46ab-bda8-7acb4b231b19